Cogmind - Beta 15 @@@ ROGUE MODE // 2025.05.11 @ 16:21:54 Player: Skysub Result: Destroyed by O1-0GW(R) with Subdweller Laser Performance ------------- Evolutions (0) 0 Regions Visited (2) 400 Robots Destroyed (10) 50 Value Destroyed (258) 258 Prototype IDs (11) 220 Alien Tech Used (0) 0 Bonus (0) 0 TOTAL SCORE: 928 Bonus ------- None Cogmind --------- Core Integrity 0/250 Matter 293/300 Energy 100/100 System Corruption 0% Temperature Cool (6) Movement Core (200) Ox3 Location -10/Subcaves Parts ------- > --- POWER (1) -------- (None) > --- PROPULSION (2) --- (None) > --- UTILITY (2) ------ Medium Storage Unit > --- WEAPON (2) ------- Light Assault Rifle > --- INVENTORY (10) --- Light Ion Engine Wheel Flightbrick Terrain Scan Processor Targeting Computer Mining Laser Peak State ------------ > --- POWER ------------ Light Ion Engine > --- PROPULSION ------- Wheel Subdweller Monowheel > --- UTILITY ---------- Medium Storage Unit Improved Terrain Scanner > --- WEAPON ----------- Light Assault Rifle Subdweller Machine Gun > --- INVENTORY -------- Light Ion Engine Wheel Flightbrick Terrain Scan Processor Targeting Computer Light Assault Rifle Mining Laser [Rating: 15] Favorites ----------- Power Light Ion Engine Engine Light Ion Engine Propulsion Wheel Wheel Wheel Utility Improved Terrain Scanner Device Improved Terrain Scanner Storage Medium Storage Unit Weapon Light Assault Rifle Ballistic Gun Light Assault Rifle Special Weapon Mining Laser Build | -11 -10 -10 ------- Run | Yrd Mat Sub Slots Evolved . | . . . Power . | . . . Propulsion . | . . . Utility . | . . . Weapon . | . . . Parts Attached 15 | 7 5 3 Power 2 | 1 1 . Engine 2 | 1 1 . Core . | . . . Reactor . | . . . Propulsion 5 | 2 2 1 Treads . | . . . Leg . | . . . Wheel 5 | 2 2 1 Hover . | . . . Flight . | . . . Utility 3 | 2 1 . Device 1 | 1 . . Storage 2 | 1 1 . Processor . | . . . Hackware . | . . . Protection . | . . . Artifact . | . . . Weapon 5 | 2 1 2 Energy Gun . | . . . Energy Cannon . | . . . Ballistic Gun 4 | 2 . 2 Ballistic Cannon . | . . . Launcher . | . . . Special Weapon 1 | . 1 . Impact Weapon . | . . . Slashing Weapon . | . . . Piercing Weapon . | . . . Special Melee Weapon . | . . . Unidentified Prototypes . | . . . Parts Lost 10 | . 3 7 Power 2 | . 1 1 Propulsion 5 | . 2 3 Utility 1 | . . 1 Weapon 2 | . . 2 Highest Loss Streak 6 | . 2 6 To Critical Strikes . | . . . Average Backups 6 | 3 7 7 Power . | . 1 1 Propulsion 2 | 1 2 2 Utility 2 | . 2 2 Weapon 1 | . 1 2 Tool/Special . | . . . Unused Backups 8 | . . 8 Power 1 | . . 1 Propulsion 4 | . . 4 Utility 3 | . . 3 Weapon . | . . . Tool/Special . | . . . Average Slot Usage (%) 97 | . 99 91 Engine 13 | . 13 13 Wheel 26 | . 27 22 Device 13 | . 14 13 Storage 14 | . 14 14 Ballistic Gun 25 | . 27 18 Special Weapon 2 | . . 9 Peak Build Rating 15 | 9 10 15 Average Rating 9 | 5 9 11 On Entrance 6 | . 9 10 Naked Turns . | . . . Heaviest Build 19 | 11 16 19 Greatest Support 30 | 26 26 30 Greatest Overweight (x) 3 | 3 1 1 Average Overweight (x) . | . . . Largest Inventory Capacity 10 | 8 10 10 Average Capacity 9 | 7 9 10 Most Carried 10 | 5 9 10 Average Carried 7 | 3 7 9 Final Capacity 10 | 8 10 10 Final Carried 9 | 5 9 9 Class Distribution -------------------- 62% | Scavenger-Mutant 37% | Mutant Dominant Class ---------------- Scavenger-Mutant | -10/Materials Scavenger-Mutant | -10/Subcaves Resources | -11 -10 -10 ----------- Run | Yrd Mat Sub Matter Collected 398 | 280 87 31 Remotely . | . . . Salvage Created 405 | 26 274 105 Parts 27 | 5 15 7 Haulers Intercepted 1 | . 1 . Recyclers Shooed 2 | 1 1 . Parts Field Recycled . | . . . Retrieved Matter . | . . . Parts Self-Destructed . | . . . Prevented . | . . . Kills | -11 -10 -10 ------- Run | Yrd Mat Sub Combat Hostiles Destroyed 8 | . 6 2 Guns 8 | . 6 2 Classes Destroyed 5 | 1 3 1 Tunneler 1 | 1 . . Hauler 1 | . 1 . Swarmer 2 | . 2 . Grunt 4 | . 4 . Subdweller 2 | . . 2 Best Kill Streak 4 | 1 4 1 Combat Bots Only 4 | . 4 1 Max Kills in Single Turn 1 | 1 1 1 Gunslinging . | . . . Exploded . | . . . Melee . | . . . Uniques/NPCs Destroyed . | . . . Combat | -11 -10 -10 -------- Run | Yrd Mat Sub Hostile Shots Fired 71 | . 46 25 Missed 11 | . 7 4 Hits 60 | . 39 21 Projectile 60 | . 39 21 Damage Taken 874 | . 372 502 Core 256 | . 130 126 Absorbed by Shields . | . . . Core Remaining (%) 100 | 100 . . Volleys Fired 57 | 5 38 14 Largest 2 | 2 2 2 Hottest 100 | 40 100 100 Shots Fired 102 | 10 69 23 Gun 92 | 10 62 20 Cannon . | . . . Launcher . | . . . Special 10 | . 7 3 Kinetic 92 | 10 62 20 Thermal 10 | . 7 3 Explosive . | . . . Electromagnetic . | . . . Robot Hit Streak 17 | 10 17 9 Robot Miss Streak 4 | . 4 1 Penetration Max . | . . . Secondary Targets 2 | . 2 . Max Gunslinging Chain 1 | . 1 . Shots Hit Robots 68 | 10 42 16 Core Hits 25 | 2 18 5 Critical Kills 2 | . 1 1 Critical Parts Destroyed . | . . . Critical Strikes 2 | . 1 1 Destroy 2 | . 1 1 Melee Attacks . | . . . Impact . | . . . Slashing . | . . . Piercing . | . . . Sneak Attacks . | . . . Combat Hostiles . | . . . Follow-up Attacks . | . . . Damage Inflicted 642 | 76 365 201 Guns 642 | 76 365 201 Cannons . | . . . Explosions . | . . . Melee . | . . . Ramming . | . . . Kinetic 642 | 76 365 201 Thermal . | . . . Explosive . | . . . Electromagnetic . | . . . Impact . | . . . Slashing . | . . . Piercing . | . . . Highest Corruption . | . . . Average Corruption . | . . . Corruption Purged . | . . . Corruption Blocked . | . . . Overload Shots . | . . . Overflow Damage . | . . . Projectiles . | . . . Explosions . | . . . Melee . | . . . Knockbacks . | . . . Impact . | . . . Kinetic . | . . . Secondary . | . . . Self-Inflicted Damage . | . . . Shots . | . . . Rammed . | . . . Targets Rammed . | . . . Kicked . | . . . Crushed . | . . . Highest Temperature 80 | . 80 . Average Temperature 32 | . 32 . Received Heat Transfer 216 | . 87 129 Siege Activations . | . . . Martial Activations . | . . . Shielding Activations . | . . . Robots Disrupted . | . . . Combat Hostiles . | . . . Robots Corrupted . | . . . Combat Hostiles . | . . . Parts Fried . | . . . Impact Corruptions . | . . . Robots Melted . | . . . Combat Hostiles . | . . . Parts Melted . | . . . Heat Transferred . | . . . Parts Sabotaged . | . . . Parts Stolen . | . . . Parts Stripped . | . . . Power Chain Reactions . | . . . Alert | -11 -10 -10 ------- Run | Yrd Mat Sub Maximum Alert Level . | . . . Low Security (%) 100 | 100 100 . Level 1 . | . . . Level 2 . | . . . Level 3 . | . . . Level 4 . | . . . Level 5 . | . . . High Security . | . . . Max Security . | . . . Peak Influence 85 | 5 85 . Initial . | . . . Average 15 | . 17 . Influence Increases 212 | 5 207 . Destroy 0b10 Robot/C 120 | . 120 . Destroy 0b10 Robot/NC 10 | 5 5 . Destroy Leader 32 | . 32 . Successful Hack 20 | . 20 . Lose Combat Pursuer 30 | . 30 . Influence Decreases 212 | 5 207 . Time Decay 182 | 5 177 . Lost Part 30 | . 30 . Squads Dispatched 1 | . 1 . Investigation 1 | . 1 . Extermination . | . . . Reinforcement . | . . . Assault . | . . . Garrison . | . . . Intercept . | . . . Searches Triggered . | . . . Construction Impeded . | . . . Haulers Reinforced . | . . . Active Scanning Responses . | . . . Cargo Convoy Interrupts . | . . . Stealth | -11 -10 -10 --------- Run | Yrd Mat Sub Distress Signals . | . . . Communications Jammed . | . . . Distress Signals . | . . . Times Spotted 16 | . 12 4 Peak Tracking Total 5 | . 5 2 Tactical Retreats 1 | . 1 . Traps | -11 -10 -10 ------- Run | Yrd Mat Sub Traps Triggered 2 | . 1 1 Indirectly . | . . . Trap Hack Attempts . | . . . Triggered . | . . . Disarmed . | . . . Reprogrammed . | . . . Reused . | . . . Traps Extracted . | . . . Installed . | . . . Triggered . | . . . Machines | -11 -10 -10 ---------- Run | Yrd Mat Sub Machines Disabled 1 | . . 1 Max in Single Turn 1 | . . 1 Machines Repaired . | . . . Machines Dismantled . | . . . Machines Sabotaged . | . . . Overloaded Fab Kills . | . . . Hacking | -11 -10 -10 --------- Run | Yrd Mat Sub Machines Accessed 7 | . 6 1 Terminals 5 | . 5 . Fabricators . | . . . Repair Stations . | . . . Recycling Units 1 | . 1 . Scanalyzers . | . . . Garrison Access . | . . . Total Hacks 29 | . 20 9 Successful 19 | . 10 9 Failed 10 | . 10 . Catastrophic . | . . . Database Lockouts . | . . . Manual 13 | . 13 . Terminals 18 | . 18 . Fabricators . | . . . Repair Stations . | . . . Recycling Units 2 | . 2 . Scanalyzers . | . . . Garrison Access . | . . . Terminal Hacks 13 | . 4 9 Record 8 | . . 8 Robot Analysis 1 | . 1 . Emergency Access Points 1 | . 1 . Locate Traps 1 | . 1 . Zone Layout 1 | . 1 . Proto ID Catalog 1 | . . 1 Fabricator Hacks . | . . . Repair Station Hacks . | . . . Recycling Unit Hacks 1 | . 1 . Report Inventory 1 | . 1 . Scanalyzer . | . . . Garrison Access Hacks . | . . . Unauthorized Hacks 5 | . 5 . Terminals 4 | . 4 . Botnet 4 | . 4 . Fabricators . | . . . Repair Stations . | . . . Recycling Units 1 | . 1 . Recyclers 1 | . 1 . Scanalyzers . | . . . Garrison Access . | . . . Data Cores Recovered . | . . . Used . | . . . Hacking Detections 5 | . 5 . Full Trace Events . | . . . Feedback Events . | . . . Feedback Blocked . | . . . Robot Schematics Acquired . | . . . Robots Built . | . . . Authchips . | . . . Time . | . . . Total Robot Build Rating . | . . . Part Schematics Acquired . | . . . Parts Built . | . . . Authchips . | . . . Time . | . . . Total Part Build Rating . | . . . Parts Repaired . | . . . Time . | . . . Parts Recycled . | . . . Recycled Matter . | . . . Retrieved Matter . | . . . Retrieved Components . | . . . Parts Scanalyzed . | . . . Part Schematics Acquired . | . . . Parts Damaged . | . . . Bothacking | -11 -10 -10 ------------ Run | Yrd Mat Sub Used RIF Installer . | . . . Robots Hacked . | . . . Non-combat . | . . . Combat . | . . . Robot Hacks Applied . | . . . Relay Couplers Released . | . . . Fabnet Peak Effective % . | . . . Robots Rewired . | . . . Allies Hacked . | . . . Hacks Repelled . | . . . Allies | -11 -10 -10 -------- Run | Yrd Mat Sub Total Allies . | . . . Largest Group . | . . . Highest-Rated Group . | . . . Highest-Rated Ally . | . . . Total Orders . | . . . Ally Attacks . | . . . Total Damage . | . . . Kills . | . . . Allies Corrupted . | . . . Allies Melted . | . . . Intel | -11 -10 -10 ------- Run | Yrd Mat Sub Active Infowar (turns) 1144 | 14 880 250 Terrain 1144 | 14 880 250 Robot Analysis Total 1 | . 1 . Derelict Logs Recovered 1 | . . 1 Drone Launches . | . . . Drone Recoveries . | . . . Exploration | -11 -10 -10 ------------- Run | Yrd Mat Sub Turns Passed 1238 | 84 880 274 Spaces Moved 572 | 61 277 234 Core 19 | 19 . . Treads . | . . . Legs . | . . . Wheels 553 | 42 277 234 Hover . | . . . Flight . | . . . Fastest Speed 50 | 50 80 80 Average Speed 86 | 86 84 89 Slowest Speed 200 | 200 95 95 Overloaded Moves . | . . . Propulsion Burnouts . | . . . Robots Hopped . | . . . Potential Cave-ins . | . . . Cave-ins Triggered . | . . . Exploration Rate (%) 24 | 4 47 22 Regions Visited 2 Branch Regions 1 Pre-discovered Areas 1 | . . 1 Known Exits Taken . | . . . Unknown Exits Taken 2 | 1 1 . Scrap Searched 1 | . . 1 Spaces Dug . | . . . Terrain Destroyed . | . . . Melee . | . . . Projectile . | . . . AOE . | . . . Terrain Rammed . | . . . Walls Destroyed . | . . . Machines Disabled . | . . . Actions | -11 -10 -10 --------- Run | Yrd Mat Sub Total 1202 | 80 851 271 Wait 541 | 3 526 12 Move 570 | 60 276 234 Hop . | . . . Pick Up 13 | 5 5 3 Fast Attach 10 | 7 2 1 Attach 2 | . 1 1 Detach . | . . . Swap 3 | . 2 1 Drop 6 | . 1 5 Fire 57 | 5 38 14 Melee . | . . . Ram . | . . . Kick . | . . . Crush . | . . . Escape Stasis . | . . . Rewire . | . . . Trap . | . . . Miscellaneous . | . . . Route ------- -11/Scrapyard -10/Materials (discovered 3 exits: [*Mat] / [*Min] / *Sub) -10/Subcaves History --------- Turn | Location | Event 2 | -11/Scrapyard | Discovered new exit (range 16) 85 | -11/Scrapyard | Entered Materials 154 | -10/Materials | Discovered new exit (range 15) 206 | -10/Materials | Discovered new exit (range 6) 316 | -10/Materials | Build established: Mutant 346 | -10/Materials | Core integrity fell below 50% 637 | -10/Materials | Build established: Scavenger-Mutant 960 | -10/Materials | Discovered new exit (range 3) 965 | -10/Materials | Entered Subcaves 1011 | -10/Subcaves | Learned location of Zion (-6) 1050 | -10/Subcaves | Visited 4L-MR0's lab 1067 | -10/Subcaves | Found Flightbrick 1140 | -10/Subcaves | Disturbed a concealed Subdweller 1234 | -10/Subcaves | Core integrity fell below 20% 1239 | -10/Subcaves | Destroyed by O1-0GW(R) with Subdweller Laser Last Messages --------------- Found Sub. Machine Gun. Found 40 Matter. Acquired 5 matter. Dropped Lgt. Assault Rifle. Acquired Sub. Machine Gun. 5X-QCN(R) angrily emerges from the Twisted Machinery. 5X-QCN(R): "REEE!" 5X-QCN(R) destroyed. Acquired 13 matter. Acquired Sub. Monowheel. K4-299(R) suffers critical hit (Destroy). K4-299(R) destroyed. Acquired 13 matter. Imp. Terrain Scanner destroyed. Lgt. Ion Engine destroyed. Sub. Monowheel destroyed. Sub. Machine Gun destroyed. Wheel destroyed. Lgt. Assault Rifle destroyed. Map ----- +----------------------------------------------------+ | ?????????????????????????????????????????????????? | | ?????????????????????????????????????????????????? | | ?????????????????????????????????????????????????? | | ?????????????????????????????????????????????????? | | ?????????????????????????????????????????????????? | | ?????????????????????????????????????????????????? | | ??????????????????????????#??????????????????????? | | ?????????????????????????????????????????????????? | | ???????????????????????????????####?####???#####?? | | ????????????????????????????#### ## ##?# ##? | | ????????????????????????????# ## ?? | | ????????????????????????????# ??? | | ????????????????????????????# ???? | | ??????????????????????#?????# #????? | | ??????????????????????????#?# #?????? | | ????????????????????????????# #?????? | | ????????????????????????????? #?????? | | ???????????????????????????????# #????#?? | | ???????????????????????#??????## #?####??? | | ??????????????????????????????# #### ##?? | | ??????????????????????????????# ## #?# | | ??????????????????????????????### ## ## | | ????????????????????????????????# ### | | ????????????????????"???????##### ##?## | | ????????????????????????##### ##???# # # | | ????????????????????????#@ #????#### ## ## | | ????????????????????????#RR #??????## #? | | ???????????????????" ####??#???# ## | | ????????????????? "" ##??????#??# # | | ?????????????? ?" "" #####??????????# | | ?????????????????## ######?????#???###### | | ??????????????????# ????????? #### | | ?????????????????# ?????????? | | ?????????????????#?????????????# | | ???????????????????????????????## ## ## | | ????????????????????????????????#### ?# ]### #? | | ?????????????????????????????#?????## ??# !%##?##? | | ??????????????????????????????????#?#???##*=&##??# | | ???????????????????????????????#???????#?# ##?? | | ?????????????????????????????????????????# ### | | ?????????????????????????????????????????# | | ???????????????????????????????????# | | ???????????????????????????????????## ### | | ????????????????????????????????????############# | | ??????????????????????????????????????????????## | | ??????????????????????????????????#???????#????# | | ??????????????????????????????????????#????#??## | | ??????????????????????????????????????????????## | | ????????????????????????????????????#?#??????## | | ???????????????????????????????????????#?????# | +----------------------------------------------------+ Best States ------------- Heat Dissipation 25 Energy Generation 10 Energy Capacity 125 Matter Stores 300 Matter Capacity 300 Sight Range 16 Terrain Scan Range 16 Terrain Scan Density 10 Evasion (%) 50 Item Schematics ----------------- None Robot Schematics ------------------ None Fabricated ------------ Nothing Repaired ---------- Nothing Alien Tech Used ----------------- None Achievements -------------- None Challenges ------------ None Game ------ Seed TargetChromaticPlating Manual? 0 Play Time 00:12:22 Cumulative 74.2 hours Start 2025.05.11 @ 02:24:54 End 2025.05.11 @ 16:21:54 Sessions 2 Manual Loads 0 Difficulty Rogue Special Mode None Game No. 74 Rogue 74 Adventurer 0 Explorer 0 Win Type - Total 1 Types 1/0/0/0/0/0/0/0/0/0 Lore% 46 Gallery% 47 Achievement% 42 Wizard Run 0 Options --------- Layout 1 ASCII 0 Keyboard 1 Movement Numpad Keybinds 0 Fullscreen 1 Font 32/SmallcapsGlow Map View 50x35 Zoom Use 0% Tactical HUD 0 Map Filters NONE Filters NONE Steam 1 RUN: 95c64350-f846-40cf-ab10-2ec521853338